Workbook

Sheet My Needs, Offerings
A1: Step 1- Identifying My Needs, Offerings, and Partners
B2: Me | C2: Objective/Goal | D2: My Core Needs | E2: How Can I Meet My Needs | F2: Partner | G2: My Current Offerings | H2: Potential New Offerings (Solutions) | I2: New Partners
A3: 1) | B3: Rescue Cat Café | C3: Stay in Business (Business Sustainability) | D3: Increase Revenue | F3: Customers | G3: Cute Cats
G4: Declicious Craft Coffee
G5: Tasty Pastries
E6: Convince current customers to pay more | G6: Welcoming Environment
E7: Convince current customers to buy more | G7: Friendly/Attentive Staff
E8: Attract new customers | G8: Reliable Wi-Fi | H8: Faster Wi-Fi
G9: Advertising on bulletin Board | H9: Advertising on Website | I9: Local Businesses w/in 20 mile radius
G10: Daily Specials | H10: Holiday Specials (unique menu)
E11: Create new revenue streams | G11: Bottomless cups of Coffee | H11: Loyalty Programs/Discounts | I11: Veterinarians, University, Influencers
G12: Small cat accessories (Stickers, cute toys, etc.) | H12: Sell cat food | I12: Petco/PetSmart/Fancy Feast Supplier
H13: Sell craft coffee making accessories (cat face themed) | I13: Next door art store
G14: Mostly empty storage room | H14: Extra space as subleased unit | I14: Supplier? Person looking for office space?
D15: Reduce Costs | E15: Reduce COGS (ingredients) | F15: Supplier | G15: Steady business | H15: Bulk Discounts
E16: Reduce labor/turnover costs | F16: Employees | G16: Ability to develop a relationship w/customers | H16: Employee Retention Program= a. Leadership & Professional Development b. Cafe entrepreneurship program | I16: University /Landlord/Mentors Group
H17: Free Pastries
E18: Reduce cost of serving each customer | G18: Employee Training | H18: Mobile Table Management Software a. Reduces wait time b. Mobile ordering | I18: Customers
E19: Reduce rent costs | F19: Landlord | G19: Paying Rent | H19: Joint Management Training Program
D20: Protect the Cats | E20: Provide safe space free of dangerous people and weather | F20: Animals | G20: Café & Private Room for Animals
E21: Provide healthy environment for cats and customers | G21: Café
E22: Care for more cats | H22: Cat Sponsorship Program | I22: Animal Hospitals (Veterinarians)
I23: Animal Shelters
E24: Video Podcast for animal rights advocacy and marketing my café | I24: Pet influencers Pet sponsors Animal Activists
D25: Help the Community | E25: Improve neighborhood security (for both animals and people) | H25: Beautify the Environment (i.e., broken window theory)
H26: a. Neighborhood watch | I26: Neighborhood community
H27: b. Pet Lover Volunteers | I27: Animal Shelters, Online communities
H28: c. Artist collaborations | I28: Artists
E29: Alleviate local poverty | H29: Donate leftover food | I29: Homeless/Animal Shelters
H30: "End of Day" Discounts at affordable rates
E31: Provide Jobs | I31: University students, homeless, volunteers
E32: Discover new ways to support the community
B34: *Reference for Steps 1-5- Adapted from:
B35: Gunia, B. C. (2019). The bartering mindset: A mostly-forgotten framework for mastering your next negotiation. Toronto; Buffalo; London: University of Toronto Press.

Sheet Partners' Needs, Offerings
A1: Step 2: Identifying Transaction Partners + Step 3: Identify their Needs & Offerings
B2: Partners | C2: Their Needs | D2: Their Offerings
A3: Current Partners
A4: 1 | B4: Customers | C4: (Entertainment) Cute Cats a. More cats may attract new or more diverse customers | D4: Revenue (i.e., current spending at café)
C5: Declicious Craft Coffee | D5: Revenue and Referrals
C6: Tastier Pastries/food | D6: Higher Margins= More $$
C7: Welcoming Environment | D7: Repeat Customer= Increased Customer Lifetime Value= Increased Spending
C8: Friendly/Attentive Staff | D8: Repeat customer
C9: Reliable Wi-Fi | D9: More time at café and potentially more spending
C10: Advertising on bulletin Board | D10: Advertising revenue
C11: Daily Specials | D11: Revenue & repeat customers
C12: Bottomless cups of Coffee | D12: Revenue, buying more items
C13: (Souvenirs) Small cat accessories (Stickers, cute toys, etc.) | D13: Revenue, increased brand awareness
C14: Status & Recognition | D14: a. (Marketing) User Generated Content via Social Media Mentions b. Volunteers?
A16: 2 | B16: Employees | C16: Employment | D16: Work
C17: Career Advancement Opportunities a. Can help with employee retention | D17: Work better and harder, stay w/company longer
C18: Free/Discounted Food
A20: 3 | B20: Suppliers | C20: Steady Business | D20: Ingredients
D21: volume/bulk discounts
C22: Additional storage space | D22: Subleasing revenue?
A24: 4 | B24: Landlord | C24: Timely Rent | D24: Building
C25: Good Managers for growing Rental Business | D25: Rent Relief
D26: Subleasing Approval
A28: Potential Partners
A29: 5 | B29: Influencers | C29: Attention | D29: Marketing (User Generated Content-UGC) + Revenue + Referrals
C30: Good Location for Content
C31: Picture/Content Corner
A33: 6 | B33: Artists | C33: Art Exposure for Art Sales | D33: Decorate walls a. Influencer Collaborations?
C34: Venue a. Display/Sell their art b. Art shows? | D34: New revenue a. Percentage of art sales? B. Art show tickets c. Art show food sales
C35: Affordable meals | D35: Revenue
A37: 7 | B37: Podcasters | C37: Attention/Listeners | D37: Marketing (User Generated Content-UGC) + Revenue + Referrals
C38: Good Location for Video Content | D38: Collaborations- Influencers + Artists
C39: Picture/Content Corner | D39: Podcast co-producers
C40: Affordable meals | D40: Partnership with café to start their own podcast
A42: 8 | B42: Grocery Store | C42: New inventory--> Delicious local food items a. Pastries? B. Craft coffee? | D42: New/expanded customer base a. Increase sales
C43: More customers a. Repeat customers b. Prevent big brand store encroachment | D43: Increased brand exposure (Marketing) a. Sign Advertising Café on Window
A45: 9 | B45: Movie Theater | C45: More customers | D45: Referrals
D46: On-screen advertising
A48: 10 | B48: Farmers Market | C48: Coffee | D48: New revenue source
C49: Delicious food items (new inventory) | D49: Free Advertising
C50: More customers
A52: 11 | B52: Police Officers | C52: Discounts | D52: Watch Neighborhood (i.e., presence patrol while in café)
D53: Revenue
A55: 12 | B55: Neighboring Towns | C55: New food items | D55: New revenue
C56: New entertainment venue
A58: 13 | B58: Animal Shelters | C58: Pet Food | D58: Safe space for animal rescues
C59: Donations
C60: Pet Adoptions | D60: Pets for adoption
A62: 14 | B62: Homeless Shelters | C62: Food | D62: Poverty/Hunger alleviation
C63: Donations | D63: Tax Break for donations
C64: Employment Opportunities for Homeless Individuals | D64: Potential Employees (ESG)
D65: Goodwill (ESG)
A67: 15 | B67: Support Groups a. Veterans b. AA | C67: Meeting space | D67: Pet Therapy
C68: Therapy space | D68: Community Goodwill
C69: Food & drink for meetings | D69: Revenue
A71: 16 | B71: Real Estate Agent | C71: Subleased Space | D71: Subleasing revenue
D72: New revenue from client meetings at café?
A74: 17 | B74: Local Schools a. Universities | C74: Affordable meals & study space (w/lots of charging stations) | D74: Revenue + Referrals
B75: b. High Schools | C75: Entertaining venue for kids to play while parents eat/drink | D75: Revenue + Marketing (kid pics)
B76: c. Elementary School | C76: Field trip venue | D76: Revenue
C77: Animal rights education | D77: Goodwill + Advocacy collaborations

Sheet ID Power Partnerships
A1: Step 2: Identifying Transaction Partners + Step 3: Identify their Needs & Offerings | F1: Step 4: Identify Most Powerful Partnerships | J1: Questions to Ask
B2: Partners | C2: Their Needs | D2: Their Offerings | F2: How to fulfill MY needs with THEIR Offerings | G2: How to fulfill THEIR needs with MY offerings | H2: Benefit/Cost | J2: 1. What would trade/deal actually look like?
F3: Current Partners | J3: 2. How well would it satisfy both of our core needs?
A4: 1 | B4: Customers | C4: (Entertainment) Cute Cats a. More cats may attract new or more diverse customers | D4: Revenue (i.e., current spending at café) | F4: More revenue from repeat customers | G4: "Hire" more cats | J4: 3. How expensive would it be to implement?
C5: Declicious Craft Coffee | D5: Revenue and Referrals | F5: More revenue from loyal repeat customers | G5: a. Create Customer Loyalty program b. Create Customer Referral Program
C6: Tastier Pastries/food | D6: Higher Margins= More $$ | G6: Diversified Menu
C7: Welcoming Environment | D7: Repeat Customer= Increased Customer Lifetime Value= Increased Spending | G7: Create study corner | J7: Power Partner Legend
C8: Friendly/Attentive Staff | D8: Repeat customer | J8: Color | K8: Description
C9: Reliable Wi-Fi | D9: More time at café and potentially more spending | F9: Cost- Buy High speed wifi packages | G9: Offer High speed WiFi packages | J9: Red | K9: Low Benefit/HIgh Cost to Me
C10: Advertising on bulletin Board | D10: Advertising revenue | G10: Offer small business ad space on website or onsite bulleting board | J10: Yellow | K10: Low Benefit/Low Cost to Me
C11: Daily Specials | D11: Revenue & repeat customers | F11: More revenue | G11: a. Holiday Specials b. Themed Menu Items (Paw-print cookies…) | J11: Light Green | K11: High Benefit/High Cost to Me
C12: Bottomless cups of Coffee | D12: Revenue, buying more items | G12: Offer for a fixed fee | J12: Dark Green | K12: High Benefit/Low Cost to Me
C13: (Souvenirs) Small cat accessories (Stickers, cute toys, etc.) | D13: Revenue, increased brand awareness | F13: Medium cost= seasonal offerings (left over inventory costs?) | G13: Holiday Specials? | J13: Light Purple | K13: Potential Power Partner
C14: Status & Recognition | D14: (Marketing) User Generated Content via Social Media Mentions | F14: + New and repeat customers - Labor Costs from Volunteers + Community Engagement | G14: a. Create Influencer Corner b. Create Volunteer Program | J14: Dark Purple | K14: Selected/Chosen Power Partner
A16: 2 | B16: Employees | C16: Employment | D16: Work | F16: Benefit= reduced employee turnover costs | G16: Employee recognition program
C17: Career Advancement Opportunities a. Can help with employee retention | D17: Work better and harder, stay w/company longer | F17: Reduced employee turnover | G17: Co-create management training program with Landlord
C18: Free/Discounted Food | F18: Employee retention | G18: Offer free or leftover pastries at end of morning/lunch shift
G19: Create Part-time Education Program
F20: Increased Revenue & Retention | G20: Provide Sales Training
A22: 3 | B22: Suppliers | C22: Steady Business | D22: Ingredients | F22: (Cost) buy better ingredients | G22: Purchase pricier ingredients
D23: volume/bulk discounts | G23: Guaranteed Purchase Level
C24: Additional storage space | D24: Subleasing revenue? | F24: Revenue for sublease | G24: Offer Storage Space for a fee
A26: 4 | B26: Landlord | C26: Timely Rent | D26: Building | G26: Pay rent on time
C27: Good Managers for growing Rental Business | D27: Rent Relief | F27: Employee retention | G27: Train and offer employees for management program
D28: Subleasing Approval | F28: Sublease revenue | G28: Offer to sign a longer term lease
F30: Potential Partners
A31: 5 | B31: Influencers | C31: Attention | D31: Marketing (User Generated Content-UGC) | F31: + Revenue + Referrals + Brand Awareness | G31: Create Influencer Corner
C32: Good Location for Content | G32: Offer Discount for social media mentions
C33: Picture/Content Corner | G33: Offer option to rent content corner for a fee
A35: 6 | B35: Artists | C35: Art Exposure for Art Sales | D35: Decorate walls a. Influencer Collaborations? | F35: + Revenue + Referrals + Brand Awareness | G35: Display art work a. create artist/influencer collabs
C36: Venue a. Display/Sell their art b. Art shows? | D36: New revenue a. Percentage of art sales? B. Art show tickets c. Art show food sales | F36: New revenue a. Percentage of art sales B. Art show tickets c. Art show food sales | G36: Host art shows
C37: Affordable meals | D37: Revenue
A39: 7 | B39: Podcasters | C39: Attention/Listeners | D39: Marketing (User Generated Content-UGC) + Revenue + Referrals | F39: '+ Revenue + Referrals + Brand Awareness | G39: Create/host podcast space
C40: Good Location for Video Content | D40: Collaborations- Influencers + Artists
C41: Picture/Content Corner | D41: Podcast co-producers | G41: Collab with podcasters
C42: Affordable meals | D42: Partnership with café to start their own podcast | F42: Help Launch our own podcast: Rescue Café Pod | G42: Offer Podcast/listener discounts
A44: 8 | B44: Grocery Store | C44: New inventory--> Delicious local food items a. Pastries? B. Craft coffee? | D44: New/expanded customer base a. Increase sales | F44: Enter new market/customer base a. Increased sales | G44: Provide Pastries/coffee
C45: More customers a. Repeat customers b. Prevent big brand store encroachment | D45: Increased brand exposure (Marketing) a. Sign Advertising Café on Window | F45: Host Café sign on website and/or storefront | G45: Print Coupon on bottom of our receipts
A47: 9 | B47: Movie Theater | C47: More customers | D47: Referrals | F47: +customers + referrals | G47: Advertise on social media/website/café flyer
D48: On-screen advertising | F48: (High cost to them)
A50: 10 | B50: Farmers Market | C50: Coffee | D50: New revenue source | F50: '+ Revenue + Referrals + Brand Awareness | G50: Provide coffee
C51: Delicious food items (new inventory) | D51: Free Advertising | G51: Provide pastry options
C52: More customers | G52: Provide Kitty employees to the market
A54: 11 | B54: Police Officers | C54: Discounts | D54: Watch Neighborhood | F54: Safer neighborhood and community | G54: Conduct presence patrol while in café (low benefit to them)
D55: Revenue | F55: + Revenue + Referrals | G55: Create public servant discount program (low benefit to them?)
A57: 12 | B57: Neighboring Towns | C57: New food items | D57: New revenue | F57: + Customers + Revenue | G57: Lease and operate a food truck
C58: New entertainment venue
A60: 13 | B60: Animal Shelters | C60: Pet Food | D60: Poverty/Hunger alleviation | F60: + Community Goodwill | G60: a. Create customer pet food sponsorship program b. Donate any leftover pet food
C61: Donations | D61: Safe space for animal rescues | F61: a. (Benefit) Marketing content, increased goodwill= + brand power= + customer loyalty and sales= +revenue b. (Cost) Donation & labor hours to track donations (or purchase software to manage donations) | G61: a. Put up sign in café about Animal Shelter needs and donations b. Make a donation c. Offer % of every sale to support (i.e., 5% of every purchase goes to Support the Animal Shelter, etc.)
C62: Pet Adoptions | D62: Pets for adoption | F62: + Protecting the cats by helping them find forever homes | G62: a. Make customer referrals b. Make landing page on website for pet adoptions c. Host a cat in need of adoption in the café for limited time (i.e., 2 weeks to find their forever homes)
A64: 14 | B64: Soup Kitchen | C64: Food | D64: Poverty/Hunger alleviation | F64: + Costs + Community Goodwill | G64: a. Offer leftover pastries/coffee after each morning/Lunch shift b. Create Buy One, Give One (BOGO) Program
C65: Donations | D65: Tax Break for donations | F65: a. (Benefit) Marketing content, increased goodwill= + brand power= + customer loyalty and sales= +revenue b. (Cost) Donation & labor hours to track donations (or purchase software to manage donations) | G65: a. Put up sign in café about Soup Kitchen donations b. Make a donation c. Offer % of every sale to support (i.e., 5% of every purchase goes to the Soup Kitchen, etc.)
C66: Employment Opportunities for Homeless Individuals | D66: Potential Employees (ESG) | F66: a. - New Empoyee Recruitment costs b. + Employee retention = - turnover and new training costs | G66: Create partnership/hire-local program
D67: Goodwill (ESG) | F67: + Customers | G67: Make referrals
A69: 15 | B69: Support Groups a. Veterans b. AA | C69: Meeting space | D69: + Revenue (food/coffee purchases) | F69: + Revenue + Referrals - Potential brand damage from "stigma" associated with support groups (negative spillage) | G69: a. Offer regular meeting space
C70: Therapy space | D70: Take a cat/pet home with them? | F70: + Community Goodwill + Helping the cats find forever homes + Helping relieve Stress and/or Veteran PTSD | G70: a. Partner w/ a therapist to conduct weekly Pet Therapy sessions b. Introduce Veterans to a potential forever friend (i.e., new pet cat)
C71: Food & drink for meetings | D71: Revenue | F71: + Revenue + CLV from repeat customers | G71: Offer food discounts
A73: 16 | B73: Real Estate Agent | C73: Subleased Space | D73: Subleasing revenue | F73: + Rent revenue | G73: Provide storage room as office space
D74: New revenue from client meetings at café? | F74: + Referals + Purchases | G74: Offer discounted food for meeting clients
A76: 17 | B76: Local Schools a. Universities | C76: Affordable meals & study space (w/lots of charging stations) | D76: Revenue + Referrals | F76: + revenue + referrals - renovation costs? | G76: a. Designated study space b. Student discounts
B77: b. High Schools | C77: Entertaining venue for kids to play while parents eat/drink | D77: Revenue + Marketing (kid pics) | G77: Offer kids corner (playground, petting zoo)
B78: c. Elementary School | C78: Field trip venue | D78: Revenue
C79: Animal rights education | D79: Goodwill + Advocacy collaborations | F79: + Goodwill + Finding forever homes for some cats + community animal rights awareness | G79: Partner or prepare workshop a. animal rights? B. proper pet care? C. Help find new pets
F82: Data Analysis- Insights for Negotiation Strategy
F83: Power Partners to Reach out by Priority | G83: Overlapping Solutions to Implement
F84: Grocey Store | G84: Build Multi-function Content Corner
F85: Influencers | G85: Create Customer Loyalty program
F86: Local University | G86: Create Customer Referral Program
F87: Landlord | G87: Offer Discounts
F88: Real Estate Agent | G88: Create & Leverage Partnerships
F89: Employees | G89: Create Training Programs
F90: Animal Shelter | G90: Create Volunteer Program
F91: Podcasters | G91: Launch Rescue Pod

Sheet MESO- Ex.
A1: Step 5- Cultivate Power Partnerships Using MESOs
A2: Option A | S2: Legend
D3: Trade | H3: Me | K3: Trade | O3: You | S3: Color | T3: Description
B4: Partner | C4: Role | D4: Item/Issue | E4: Quantity | F4: Unit | G4: Unit Cost ($) | H4: Total Costs ($) | I4: Benefits | J4: Role | K4: Item/Issue | L4: Quantity | M4: Unit | N4: Unit Cost ($) | O4: Total Costs ($) | P4: Benefits | S4: Yellow | T4: Variable Data
A5: 1) | B5: Grocery Store | C5: Café Owner to Grocer | D5: Pastries | E5: 600 | F5: Day | G5: 0.3 | H5: =E5*G5 -> 180 | I5: =O5-H5 -> 120 | J5: Grocer to Café Owner | K5: Pastry Payment | L5: 600 | M5: Item | N5: 0.5 | O5: =L5*N5 -> 300 | P5: Attract new customers | S5: Light Green | T5: Constant Data
D6: Coupons on Receipts | E6: 100 | F6: Day | G6: 0.1 | H6: =E6*G6 -> 10 | I6: =O6-H6 -> 6.666666667 | K6: Printing Fee | M6: Month | N6: 500 | O6: =500/30 -> 16.66666667 | P6: Advertisement | S6: Dark Green | T6: Agreed Upon Value (Deal)
K7: Café Sign Placement | L7: Largest | M7: Window | O7: Ad Space | P7: Customer Referrals | S7: Red | T7: Deal Breaker
G8: Totals | H8: =SUM(H5:H7) -> 190 | I8: =SUM(I5:I7) -> 126.6666667 | N8: Totals | O8: =SUM(O5:O7) -> 316.6666667 | P8: =SUM(P5:P7) -> 0
A11: Option B
D12: Trade | H12: Me | K12: Trade | O12: You
A13: # | B13: Partner | C13: Role | D13: Item/Issue | E13: Quantity | F13: Unit | G13: Unit Cost ($) | H13: Total Costs ($) | I13: Benefits | J13: Role | K13: Item/Issue | L13: Quantity | M13: Unit | N13: Unit Cost ($) | O13: Total Costs ($) | P13: Benefits
A14: 1) | B14: Grocery Store | C14: Café Owner to Grocer | D14: Pastries | E14: 625 | F14: Day | G14: 0.3 | H14: =E14*G14 -> 187.5 | I14: =O14-H14 -> 125 | J14: Grocer to Café Owner | K14: Pastry Payment | L14: =E14 -> 625 | M14: Item | N14: 0.5 | O14: =L14*N14 -> 312.5 | P14: Attract new customers
D15: Coupons on Receipts | E15: 100 | F15: Day | G15: 0.1 | H15: =E15*G15 -> 10 | I15: =O15-H15 -> 6.666666667 | K15: Printing Fee | M15: Month | N15: 500 | O15: =500/30 -> 16.66666667 | P15: Advertisement
K16: Café Sign Placement | L16: Medium | M16: Window | O16: Ad Space | P16: Customer Referrals
G17: Totals | H17: =SUM(H14:H16) -> 197.5 | I17: =SUM(I14:I16) -> 131.6666667 | N17: Totals | O17: =SUM(O14:O16) -> 329.1666667 | P17: =SUM(P14:P16) -> 0
A22: Option C
D23: Trade | H23: Me | K23: Trade | O23: You
A24: # | B24: Partner | C24: Role | D24: Item/Issue | E24: Quantity | F24: Unit | G24: Unit Cost ($) | H24: Total Costs ($) | I24: Benefits | J24: Role | K24: Item/Issue | L24: Quantity | M24: Unit | N24: Unit Cost ($) | O24: Total Costs ($) | P24: Benefits
A25: 1) | B25: Grocery Store | C25: Café Owner to Grocer | D25: Pastries | E25: 450 | F25: Day | G25: 0.3 | H25: =E25*G25 -> 135 | I25: =O25-H25 -> 146.25 | J25: Grocer to Café Owner | K25: Pastry Payment | L25: =E25 -> 450 | M25: Item | N25: 0.625 | O25: =L25*N25 -> 281.25 | P25: Attract new customers
D26: Coupons on Receipts | E26: 100 | F26: Day | G26: 0.1 | H26: =E26*G26 -> 10 | I26: =O26-H26 -> 6.666666667 | K26: Printing Fee | M26: Month | N26: 500 | O26: =500/30 -> 16.66666667 | P26: Advertisement
K27: Café Sign Placement | L27: Largest | M27: Window | O27: Ad Space | P27: Customer Referrals
G28: Totals | H28: =SUM(H25:H27) -> 145 | I28: =SUM(I25:I27) -> 152.9166667 | N28: Totals | O28: =SUM(O25:O27) -> 297.9166667 | P28: =SUM(P25:P27) -> 0
A31: Data Analysis- Insights for Negotiation Strategy
D32: Trade | H32: Me | K32: Trade | O32: You
A33: # | B33: Partner | C33: Role | D33: Item/Issue Priority | E33: QTY Max (Ceiling) | F33: Unit | G33: QTY Min (Anchor) | H33: Value of Bargaining Zone | J33: Role | K33: Item/Issue Priority | L33: QTY Max (Ceiling) | M33: Unit | N33: QTY Min (Anchor) | O33: Value of Bargaining Zone
A34: 1) | B34: Grocery Store | C34: Café Owner to Grocer | D34: Coupons on Receipts | E34: 100 | F34: Day | J34: Grocer to Café Owner | K34: Printing Fee | M34: Month | N34: 500
C35: 2 | D35: Pastries | E35: 625 | F35: Day | G35: 450 | H35: =E35-G35 -> 175 | J35: 2 | K35: Pastry Payment | L35: =N25 -> 0.625 | M35: item | N35: =N14 -> 0.5 | O35: =L35-N35 -> 0.125
C36: 3 | J36: 3 | K36: Café Sign Placement | L36: =L27 -> Largest | M36: Window | N36: =L16 -> Medium | O36: Med-Large
B37: BATNA

Sheet ScoringSystem- Ex. CEO Hire
A1: Salary | D1: Min | E1: =SUM(B3,B11,B19,B27,B35,B43,B51,B59) -> -8400 | G1: Issues | H1: Weight | I1: Points | J1: Score | L1: Actual Deal | M1: Scoring System Points
A2: Options | B2: Points | D2: Max | E2: =SUM(B7,B15,B23,B31,B39,B47,B55,B63) -> 13200 | G2: Salary (27.8%) | L2: 86000 | M2: =VLOOKUP(L2,G3:J7,4,FALSE) -> 20.83333333
A3: 90000 | B3: -6000 | D3: Range | E3: =E2-E1 -> 21600 | G3: 90000 | H3: 0.2777777778 | I3: 50 | J3: =H3*I3 -> 13.88888889 | L3: 15 Days | M3: =VLOOKUP(L3,G9:J13,4,FALSE) -> 13.88888889
A4: =A3-2000 -> 88000 | B4: -4500 | G4: =G3-2000 -> 88000 | H4: 0.2777777778 | I4: 65 | J4: =H4*I4 -> 18.05555556 | L4: Plan E | M4: =VLOOKUP(L4,G15:J19,4,FALSE) -> 14.81481481
A5: =A4-2000 -> 86000 | B5: -3000 | G5: =G4-2000 -> 86000 | H5: 0.2777777778 | I5: 75 | J5: =H5*I5 -> 20.83333333 | L5: Priority E | M5: =VLOOKUP(L5,G27:J31,4,FALSE) -> 11.11111111
A6: =A5-2000 -> 84000 | B6: -1500 | G6: =G5-2000 -> 84000 | H6: 0.2777777778 | I6: 85 | J6: =H6*I6 -> 23.61111111 | L6: 2025-07-01 | M6: =VLOOKUP(L6,G21:J25,4,FALSE) -> 8.333333333
A7: =A6-2000 -> 82000 | B7: 0 | G7: =G6-2000 -> 82000 | H7: 0.2777777778 | I7: 100 | J7: =H7*I7 -> 27.77777778 | L7: 0.08 | M7: =VLOOKUP(L7,G33:J37,4,FALSE) -> 4.814814815
G8: Vacation Time (18.5%) | L8: Busan | M8: =VLOOKUP(L8,G39:J43,4,FALSE) -> 5.555555556
A9: Vacation Time | G9: 25 Days | H9: 0.1851851852 | I9: 50 | J9: =H9*I9 -> 9.259259259 | L9: 1 | M9: =VLOOKUP(L9,G45:J49,4,FALSE) -> 1.851851852
A10: Options | B10: Points | G10: 20 Days | H10: 0.1851851852 | I10: 65 | J10: =H10*I10 -> 12.03703704 | L10: Total Score | M10: =SUM(M2:M9) -> 81.2037037
A11: 25 Days | B11: 0 | G11: 15 Days | H11: 0.1851851852 | I11: 75 | J11: =H11*I11 -> 13.88888889
A12: 20 Days | B12: 1000 | G12: 10 Days | H12: 0.1851851852 | I12: 85 | J12: =H12*I12 -> 15.74074074
A13: 15 Days | B13: 2000 | G13: 5 Days | H13: 0.1851851852 | I13: 100 | J13: =H13*I13 -> 18.51851852 | L13: Min | M13: =SUM(J3,J9,J15,J21,J27,J33,J39,J45) -> 50
A14: 10 Days | B14: 3000 | G14: Insurance Coverage (14.8%) | L14: Max | M14: =SUM(J7,J13,J19,J25,J31,J37,J43,J49) -> 100
A15: 5 Days | B15: 4000 | G15: Plan A | H15: 0.1481481481 | I15: 50 | J15: =H15*I15 -> 7.407407407
G16: Plan B | H16: 0.1481481481 | I16: 65 | J16: =H16*I16 -> 9.62962963
A17: Insurance Coverage | G17: Plan C | H17: 0.1481481481 | I17: 75 | J17: =H17*I17 -> 11.11111111
A18: Options | B18: Points | G18: Plan D | H18: 0.1481481481 | I18: 85 | J18: =H18*I18 -> 12.59259259
A19: Plan A | B19: 0 | G19: Plan E | H19: 0.1481481481 | I19: 100 | J19: =H19*I19 -> 14.81481481
A20: Plan B | B20: 800 | G20: Starting Date (11.1%)
A21: Plan C | B21: 1600 | G21: 2025-06-01 | H21: 0.1111111111 | I21: 50 | J21: =H21*I21 -> 5.555555556
A22: Plan D | B22: 2400 | G22: 2025-06-15 | H22: 0.1111111111 | I22: 65 | J22: =H22*I22 -> 7.222222222
A23: Plan E | B23: 3200 | G23: 2025-07-01 | H23: 0.1111111111 | I23: 75 | J23: =H23*I23 -> 8.333333333
G24: 2025-07-15 | H24: 0.1111111111 | I24: 85 | J24: =H24*I24 -> 9.444444444
A25: Starting Date | G25: 2025-08-01 | H25: 0.1111111111 | I25: 100 | J25: =H25*I25 -> 11.11111111
A26: Options | B26: Points | G26: Job Priorities (11.1%)
A27: 2021-06-01 | B27: 0 | G27: Priority A | H27: 0.1111111111 | I27: 50 | J27: =H27*I27 -> 5.555555556
A28: 2021-06-15 | B28: 600 | G28: Priority B | H28: 0.1111111111 | I28: 65 | J28: =H28*I28 -> 7.222222222
A29: 2021-07-01 | B29: 1200 | G29: Priority C | H29: 0.1111111111 | I29: 75 | J29: =H29*I29 -> 8.333333333
A30: 2021-07-15 | B30: 1800 | G30: Priority D | H30: 0.1111111111 | I30: 85 | J30: =H30*I30 -> 9.444444444
A31: 2021-08-01 | B31: 2400 | G31: Priority E | H31: 0.1111111111 | I31: 100 | J31: =H31*I31 -> 11.11111111
G32: Bonus (7.4%)
A33: Job Assignment | G33: 0.1 | H33: 0.07407407407 | I33: 50 | J33: =H33*I33 -> 3.703703704
A34: Options | B34: Points | G34: 0.08 | H34: 0.07407407407 | I34: 65 | J34: =H34*I34 -> 4.814814815
A35: Division E | B35: -2400 | G35: 0.06 | H35: 0.07407407407 | I35: 75 | J35: =H35*I35 -> 5.555555556
A36: Division D | B36: -1800 | G36: 0.04 | H36: 0.07407407407 | I36: 85 | J36: =H36*I36 -> 6.296296296
A37: Division C | B37: -1200 | G37: 0.02 | H37: 0.07407407407 | I37: 100 | J37: =H37*I37 -> 7.407407407
A38: Division B | B38: -600 | G38: New Café Location (South Korea) (5.6%)
A39: Division A | B39: 0 | G39: Itaewon, Seoul | H39: 0.05555555556 | I39: 50 | J39: =H39*I39 -> 2.777777778
G40: Gagnam, Seoul | H40: 0.05555555556 | I40: 65 | J40: =H40*I40 -> 3.611111111
A41: Bonus | G41: Pyongtaek | H41: 0.05555555556 | I41: 75 | J41: =H41*I41 -> 4.166666667
A42: Options | B42: Points | G42: Jeju Island | H42: 0.05555555556 | I42: 85 | J42: =H42*I42 -> 4.722222222
A43: 0.1 | B43: 0 | G43: Busan | H43: 0.05555555556 | I43: 100 | J43: =H43*I43 -> 5.555555556
A44: 0.08 | B44: 400 | G44: Moving Expenses (3.7%)
A45: 0.06 | B45: 800 | G45: 1 | H45: 0.03703703704 | I45: 50 | J45: =H45*I45 -> 1.851851852
A46: 0.04 | B46: 1200 | G46: 0.9 | H46: 0.03703703704 | I46: 65 | J46: =H46*I46 -> 2.407407407
A47: 0.02 | B47: 1600 | G47: 0.8 | H47: 0.03703703704 | I47: 75 | J47: =H47*I47 -> 2.777777778
G48: 0.7 | H48: 0.03703703704 | I48: 85 | J48: =H48*I48 -> 3.148148148
A49: Location | G49: 0.6 | H49: 0.03703703704 | I49: 100 | J49: =H49*I49 -> 3.703703704
A50: Options | B50: Points
A51: New York | B51: 0
A52: Boston | B52: 300
A53: Chicago | B53: 600
A54: Atlanta | B54: 900
A55: San Francisco | B55: 1200
A57: Moving Expenses
A58: Options | B58: Points
A59: 1 | B59: 0
A60: 0.9 | B60: 200
A61: 0.8 | B61: 400
A62: 0.7 | B62: 600
A63: 0.6 | B63: 800

Sheet Calculator
A1: Founder/Recruiter Points Calculator
A2: Category | B2: Value | C2: Points
A3: Salary | B3: 86000 | C3: =VLOOKUP(B3,Reference!S:T,2,FALSE) -> -3000
A4: Vacation Time | B4: 15 Days | C4: =VLOOKUP(B4,Reference!G:H,2,FALSE) -> 2000
A5: Insurance | B5: Plan E | C5: =VLOOKUP(B5,Reference!P:Q,2,FALSE) -> 3200
A6: Job Priority | B6: Priority E | C6: =VLOOKUP(B6,Reference!D:E,2,FALSE) -> 0
A7: Starting Date | B7: 2021-07-01 | C7: =VLOOKUP(B7,Reference!J:K,2,FALSE) -> 1200
A8: Bonus | B8: 0.08 | C8: =VLOOKUP(B8,Reference!A:B,2,FALSE) -> 400
A9: Location | B9: Busan | C9: =VLOOKUP(B9,Reference!V:W,2,FALSE) -> 1200
A10: Moving Expense | B10: 1 | C10: =VLOOKUP(B10,Reference!M:N,2,FALSE) -> 0
B11: Current Deal | C11: =SUM(C3:C10) -> 5000
B13: Max Points | C13: =(Reference!W9) -> 13200
B14: Bargaining Zone | C14: =C13-C11 -> 8200

Sheet Reference
A1: Bonus | D1: Job Priority | G1: Vacation Time | J1: Starting Date | M1: Moving Expenses | P1: Insurance Coverage | S1: Salary | V1: Café Location
A2: Options | B2: Points | D2: Options | E2: Points | G2: Options | H2: Points | J2: Options | K2: Points | M2: Options | N2: Points | P2: Options | Q2: Points | S2: Options | T2: Points | V2: Options | W2: Points
A3: 0.1 | B3: 0 | D3: Priority A | E3: -2400 | G3: 25 Days | H3: 0 | J3: 2021-06-01 | K3: 0 | M3: 1 | N3: 0 | P3: Plan A | Q3: 0 | S3: 90000 | T3: -6000 | V3: Itaewon, Seoul | W3: 0
A4: 0.08 | B4: 400 | D4: Priority B | E4: -1800 | G4: 20 Days | H4: 1000 | J4: 2021-06-15 | K4: 600 | M4: 0.9 | N4: 200 | P4: Plan B | Q4: 800 | S4: =S3-2000 -> 88000 | T4: -4500 | V4: Gagnam, Seoul | W4: 300
A5: 0.06 | B5: 800 | D5: Priority C | E5: -1200 | G5: 15 Days | H5: 2000 | J5: 2021-07-01 | K5: 1200 | M5: 0.8 | N5: 400 | P5: Plan C | Q5: 1600 | S5: =S4-2000 -> 86000 | T5: -3000 | V5: Pyongtaek | W5: 600
A6: 0.04 | B6: 1200 | D6: Priority D | E6: -600 | G6: 10 Days | H6: 3000 | J6: 2021-07-15 | K6: 1800 | M6: 0.7 | N6: 600 | P6: Plan D | Q6: 2400 | S6: =S5-2000 -> 84000 | T6: -1500 | V6: Jeju Island | W6: 900
A7: 0.02 | B7: 1600 | D7: Priority E | E7: 0 | G7: 5 Days | H7: 4000 | J7: 2021-08-01 | K7: 2400 | M7: 0.6 | N7: 800 | P7: Plan E | Q7: 3200 | S7: =S6-2000 -> 82000 | T7: 0 | V7: Busan | W7: 1200
V9: Max Points | W9: =SUM(W7+T7+Q7+N7+K7+H7+E7+B7) -> 13200
